fUST/lending_fUST_20250831
["ID","MTS","AMOUNT","RATE_DAILY","PERIOD"]
[382472779,1756639851348,-151.0,0.00017901,2]
[382472780,1756639851358,-151.0,0.00017901,2]
[382472781,1756639851367,-212.672836,0.00017901,2]
[382472782,1756639851376,-185.876676,0.00017901,2]
[382472783,1756639851385,-185.876676,0.00017901,2]
[382472784,1756639851394,-185.876676,0.00017901,2]
[382472785,1756639851403,-185.876676,0.00017901,2]
[382472786,1756639851413,-156.946248,0.00017901,2]
[382472787,1756639851422,-156.946248,0.00017901,2]
[382472788,1756639851431,-151.0,0.00017901,2]
[382472789,1756639851441,-156.946248,0.00017901,2]
[382472790,1756639851450,-156.946248,0.00017901,2]
[382472791,1756639851459,-619.536546,0.00017901,2]
[382472792,1756639851468,-151.123548,0.00017901,2]
[382472793,1756639851478,-1000.0,0.00017901,2]
[382472794,1756639851488,-151.0,0.00017901,2]
[382472795,1756639851497,-1000.0,0.00017901,2]
[382472796,1756639851506,-1000.0,0.00017901,2]
[382472797,1756639851515,-1000.0,0.00017901,2]
[382472798,1756639851524,-1000.0,0.00017901,2]
[382472799,1756639851534,-619.536546,0.00017901,2]
[382472800,1756639851543,-1000.0,0.00017901,2]
[382472801,1756639851552,-1000.0,0.00017901,2]
[382472802,1756639851561,-1000.0,0.00017901,2]
[382472803,1756639851570,-1000.0,0.00017901,2]
[382472804,1756639851581,-151.0,0.00017901,2]
[382472805,1756639851590,-1000.0,0.00017901,2]
[382472806,1756639851599,-619.536546,0.00017901,2]
[382472807,1756639851608,-1000.0,0.00017901,2]
[382472808,1756639851618,-1000.0,0.00017901,2]
[382472809,1756639851627,-1000.0,0.00017901,2]
[382472810,1756639851637,-1000.0,0.00017901,2]
[382472811,1756639851647,-1000.0,0.00017901,2]
[382472812,1756639851656,-619.536546,0.00017901,2]
[382472813,1756639851665,-1000.0,0.00017901,2]
[382472814,1756639851676,-1000.0,0.00017901,2]
[382472815,1756639851685,-1000.0,0.00017901,2]
[382472816,1756639851695,-1000.0,0.00017901,2]
[382472817,1756639851703,-151.0,0.00017902,2]
[382472818,1756639851713,-480.0,0.00017903,2]
[382472819,1756639851722,-480.0,0.00017903,2]
[382472820,1756639851732,-480.0,0.00017903,2]
[382472821,1756639851741,-480.0,0.00017903,2]
[382472822,1756639851751,-438.11780381,0.00017903,2]
[382472823,1756639851760,-480.0,0.00017903,2]
[382472824,1756639851769,-480.0,0.00017903,2]
[382472825,1756639851778,-480.0,0.00017903,2]
[382472826,1756639851788,-480.0,0.00017903,2]
[382472827,1756639851798,-312.43713229,0.00017903,2]
[382472828,1756639851807,-480.0,0.00017903,2]
[382472829,1756639851817,-480.0,0.00017903,2]
[382472830,1756639851827,-480.0,0.00017903,2]
[382472831,1756639851975,-1845.48,0.00017903,2]
[382472832,1756639851984,-480.0,0.00017903,2]
[382472833,1756639851991,-502.79,0.00017903,2]
[382472834,1756639851999,-480.0,0.00017903,2]
[382472835,1756639852007,-481.12814767,0.00017903,2]
[382472836,1756639852016,-480.0,0.00017903,2]
[382472837,1756639852023,-1734.94,0.00017903,2]
[382472838,1756639852032,-480.0,0.00017903,2]
[382472839,1756639852041,-480.0,0.00017903,2]
[382472840,1756639852050,-480.0,0.00017903,2]
[382472841,1756639852057,-480.0,0.00017903,2]
[382472842,1756639852065,-480.0,0.00017903,2]
[382472843,1756639852072,-480.0,0.00017903,2]
[382472844,1756639852080,-480.0,0.00017903,2]
[382472845,1756639852087,-480.0,0.00017903,2]
[382472846,1756639852095,-480.0,0.00017903,2]
[382472847,1756639852103,-279.29495814,0.00017903,2]
[382472848,1756639852112,-480.0,0.00017903,2]
[382472849,1756639852120,-812.35,0.00017903,2]
[382472850,1756639852128,-480.0,0.00017903,2]
[382472851,1756639852137,-186.55579662,0.00017903,2]
[382472852,1756639852145,-480.0,0.00017903,2]
[382472853,1756639852154,-480.0,0.00017903,2]
[382472854,1756639852164,-514.23,0.00017903,2]
[382472855,1756639852172,-480.0,0.00017903,2]
[382472856,1756639852179,-1105.26,0.00017903,2]
[382472857,1756639852186,-480.0,0.00017903,2]
[382472858,1756639852192,-880.48,0.00017903,2]
[382472859,1756639852200,-1033.69,0.00017903,2]
[382472860,1756639852208,-480.0,0.00017903,2]
[382472861,1756639852215,-480.0,0.00017903,2]
[382472862,1756639852222,-480.0,0.00017903,2]
[382472863,1756639852230,-480.0,0.00017903,2]
[382472864,1756639852237,-534.67,0.00017903,2]
[382472865,1756639852245,-923.92,0.00017903,2]
[382472866,1756639852252,-555.84,0.00017903,2]
[382472867,1756639852260,-480.0,0.00017903,2]
[382472868,1756639852268,-480.0,0.00017903,2]
[382472869,1756639852276,-1000.0,0.00017903,2]
[382472870,1756639852284,-480.0,0.00017903,2]
[382472871,1756639852292,-510.7510522,0.00017903,2]
[382472872,1756639852300,-480.0,0.00017903,2]
[382472873,1756639852308,-480.0,0.00017903,2]
[382472874,1756639852317,-410.49221079,0.00017903,2]
[382472875,1756639852325,-480.0,0.00017903,2]
[382472876,1756639852333,-538.7,0.00017903,2]
[382472877,1756639852340,-480.0,0.00017903,2]
[382472878,1756639852348,-480.0,0.00017903,2]
[382472879,1756639852355,-480.0,0.00017903,2]
[382472880,1756639852363,-480.0,0.00017903,2]
[382472881,1756639852371,-480.0,0.00017903,2]
[382472882,1756639852379,-481.78518685,0.00017903,2]
[382472883,1756639852387,-1129.79,0.00017903,2]
[382472884,1756639852397,-480.0,0.00017903,2]
[382472885,1756639852404,-586.76,0.00017903,2]
[382472886,1756639852411,-480.0,0.00017903,2]
[382472887,1756639852419,-703.32,0.00017903,2]
[382472888,1756639852426,-480.0,0.00017903,2]
[382472889,1756639852433,-480.0,0.00017903,2]
[382472890,1756639852440,-481.3470306,0.00017903,2]
[382472891,1756639852448,-480.0,0.00017903,2]
[382472892,1756639852455,-740.8,0.00017903,2]
[382472893,1756639852461,-789.46,0.00017903,2]
[382472894,1756639852467,-184.400329,0.00017903,2]
[382472895,1756639852474,-1587.95,0.00017903,2]
[382472896,1756639852483,-421.55447545,0.00017903,2]
[382472897,1756639852493,-480.0,0.00017903,2]
[382472898,1756639852502,-151.0,0.00017903,2]
[382472899,1756639852512,-151.0,0.00017903,2]
[382472900,1756639852521,-480.0,0.00017903,2]
[382472901,1756639852530,-480.0,0.00017903,2]
[382472902,1756639852540,-590.8,0.00017903,2]
[382472903,1756639852549,-297.60048262,0.00017903,2]
[382472904,1756639852558,-684.59,0.00017903,2]
[382472905,1756639852567,-480.0,0.00017903,2]
[382472906,1756639852577,-151.0,0.00017903,2]
[382472907,1756639852586,-151.0,0.00017903,2]
[382472908,1756639852595,-151.0,0.00017903,2]
[382472909,1756639852605,-151.0,0.00017903,2]
[382472910,1756639852614,-151.0,0.00017903,2]
[382472911,1756639852623,-1551.5,0.00017903,2]
[382472912,1756639852633,-480.0,0.00017903,2]
[382472913,1756639852642,-480.0,0.00017903,2]
[382472914,1756639852651,-480.0,0.00017903,2]
[382472915,1756639852660,-480.0,0.00017903,2]
[382472916,1756639852672,-480.0,0.00017903,2]
[382472917,1756639852681,-480.0,0.00017903,2]
[382472918,1756639852691,-151.0,0.00017903,2]
[382472919,1756639852701,-480.0,0.00017903,2]
[382472920,1756639852710,-480.0,0.00017903,2]
[382472921,1756639852720,-1550.77,0.00017903,2]
[382472922,1756639852729,-480.0,0.00017903,2]
[382472923,1756639852739,-480.0,0.00017903,2]
[382472924,1756639852750,-480.0,0.00017903,2]
[382472925,1756639852759,-480.0,0.00017903,2]
[382472926,1756639852769,-480.0,0.00017903,2]
[382472927,1756639852778,-175.10694815,0.00017903,2]
[382472928,1756639852787,-151.0,0.00017903,2]
[382472929,1756639852796,-1733.66,0.00017903,2]
[382472930,1756639852805,-480.0,0.00017903,2]
[382472931,1756639852815,-480.0,0.00017903,2]
[382472932,1756639852824,-480.0,0.00017903,2]
[382472933,1756639852834,-572.76,0.00017903,2]
[382472934,1756639852843,-836.71,0.00017903,2]
[382472935,1756639852852,-480.0,0.00017903,2]
[382472936,1756639852861,-607.24,0.00017903,2]
[382472937,1756639852870,-571.99,0.00017903,2]
[382472938,1756639852879,-480.0,0.00017903,2]
[382472939,1756639852890,-481.29,0.00017903,2]
[382472940,1756639852900,-480.0,0.00017903,2]
[382472941,1756639852910,-519.29,0.00017903,2]
[382472942,1756639852920,-572.28,0.00017903,2]
[382472943,1756639852929,-324.0913876,0.00017903,2]
[382472944,1756639852938,-480.0,0.00017903,2]
[382472945,1756639852948,-480.0,0.00017903,2]
[382472946,1756639852958,-480.0,0.00017903,2]
[382472947,1756639852967,-480.0,0.00017903,2]
[382472948,1756639852977,-881.51,0.00017903,2]
[382472949,1756639852987,-480.0,0.00017903,2]
[382472950,1756639852997,-581.67,0.00017903,2]
[382472951,1756639853007,-858.4,0.00017903,2]
[382472952,1756639853016,-675.39,0.00017903,2]
[382472953,1756639853026,-480.0,0.00017903,2]
[382472954,1756639853036,-480.0,0.00017903,2]
[382472955,1756639853046,-1003.54527382,0.00017903,2]
[382472956,1756639853055,-480.0,0.00017903,2]
[382472957,1756639853065,-480.0,0.00017903,2]
[382472958,1756639853075,-480.0,0.00017903,2]
[382472959,1756639853084,-503.8,0.00017903,2]
[382472960,1756639853094,-480.0,0.00017903,2]
[382472961,1756639853103,-480.0,0.00017903,2]
[382472962,1756639853113,-586.48,0.00017903,2]
[382472963,1756639853122,-480.0,0.00017903,2]
[382472964,1756639853133,-500.0,0.00017903,2]
[382472965,1756639853142,-480.0,0.00017903,2]
[382472966,1756639853151,-480.0,0.00017903,2]
[382472967,1756639853160,-480.0,0.00017903,2]
[382472968,1756639853169,-480.0,0.00017903,2]
[382472969,1756639853178,-480.0,0.00017903,2]
[382472970,1756639853188,-867.44,0.00017903,2]
[382472971,1756639853197,-480.0,0.00017903,2]
[382472972,1756639853206,-480.0,0.00017903,2]
[382472973,1756639853216,-480.0,0.00017903,2]
[382472974,1756639853227,-480.0,0.00017903,2]
[382472975,1756639853237,-480.0,0.00017903,2]
[382472976,1756639853246,-480.0,0.00017903,2]
[382472977,1756639853256,-480.73,0.00017903,2]
[382472978,1756639853266,-1399.32,0.00017903,2]
[382472979,1756639853276,-966.64,0.00017903,2]
[382472980,1756639853286,-480.0,0.00017903,2]
[382472981,1756639853295,-480.0,0.00017903,2]
[382472982,1756639853305,-580.87,0.00017903,2]
[382472983,1756639853315,-659.58,0.00017903,2]
[382472984,1756639853324,-480.0,0.00017903,2]
[382472985,1756639853334,-480.0,0.00017903,2]
[382472986,1756639853344,-480.0,0.00017903,2]
[382472987,1756639853354,-405.51587298,0.00017903,2]
[382472988,1756639853364,-480.0,0.00017903,2]
[382472989,1756639853372,-480.0,0.00017903,2]
[382472990,1756639853381,-480.0,0.00017903,2]
[382472991,1756639853391,-1038.46,0.00017903,2]
[382472992,1756639853400,-480.0,0.00017903,2]
[382472993,1756639853409,-480.0,0.00017903,2]
[382472994,1756639853419,-480.0,0.00017903,2]
[382472995,1756639853429,-1260.41,0.00017903,2]
[382472996,1756639853438,-480.0,0.00017903,2]
[382472997,1756639853447,-480.0,0.00017903,2]
[382472998,1756639853457,-564.21,0.00017903,2]
[382472999,1756639853466,-480.0,0.00017903,2]
[382473000,1756639853476,-480.0,0.00017903,2]
[382473001,1756639853485,-653.73,0.00017903,2]
[382473002,1756639853495,-585.33,0.00017903,2]
[382473003,1756639853504,-504.7,0.00017903,2]
[382473004,1756639853515,-480.0,0.00017903,2]
[382473005,1756639853525,-582.99,0.00017903,2]
[382473006,1756639853534,-480.0,0.00017903,2]
[382473007,1756639853545,-480.0,0.00017903,2]
[382473008,1756639853554,-480.0,0.00017903,2]
[382473009,1756639853564,-618.42,0.00017903,2]
[382473010,1756639853574,-480.0,0.00017903,2]
[382473011,1756639853584,-496.7,0.00017903,2]
[382473012,1756639853594,-480.0,0.00017903,2]
[382473013,1756639853604,-754.46,0.00017903,2]
[382473014,1756639853614,-598.65,0.00017903,2]
[382473015,1756639853624,-480.0,0.00017903,2]
[382473016,1756639853633,-480.0,0.00017903,2]
[382473017,1756639853643,-902.36,0.00017903,2]
[382473018,1756639853653,-480.0,0.00017903,2]
[382473019,1756639853662,-480.0,0.00017903,2]
[382473020,1756639853676,-921.53,0.00017903,2]
[382473021,1756639853686,-480.0,0.00017903,2]
[382473022,1756639853697,-151.0,0.00017904,2]
[382473023,1756639853707,-151.0,0.00017904,2]
[382473024,1756639853717,-2898.88,0.00017904,2]
[382473025,1756639853727,-1737.4,0.00017904,2]
[382473026,1756639853736,-930.35,0.00017904,2]
[382473027,1756639853745,-1853.64,0.00017904,2]
[382473028,1756639853755,-1059.09,0.00017904,2]
[382473029,1756639853764,-480.0,0.00017904,2]
[382473030,1756639853775,-1223.71,0.00017904,2]
[382473031,1756639853784,-480.0,0.00017904,2]
[382473032,1756639853793,-831.83,0.00017904,2]
[382473033,1756639853802,-496.54,0.00017904,2]
[382473034,1756639853812,-1076.16,0.00017904,2]
[382473035,1756639853822,-961.35,0.00017904,2]
[382473036,1756639853832,-480.0,0.00017904,2]
[382473037,1756639853842,-1317.7,0.00017904,2]
[382473038,1756639853851,-151.0,0.00017904,2]
[382473039,1756639853861,-872.85,0.00017904,2]
[382473040,1756639853871,-480.0,0.00017904,2]
[382473041,1756639853881,-480.0,0.00017904,2]
[382473042,1756639853892,-1284.0,0.00017904,2]
[382473043,1756639853901,-2163.1,0.00017904,2]
[382473044,1756639853911,-38.18643662,0.00017904,2]
[382473045,1756639856788,-151.0,0.00017519,2]
[382473046,1756639856798,-39.80785755,0.00017527,2]
[382473047,1756639861768,1497.52308202,0.00017427,2]
[382473048,1756639861792,10000.01,0.00017427,2]
[382473049,1756639861815,10000.01,0.00017427,2]
[382473050,1756639861839,10000.01,0.00017427,2]
[382473051,1756639861862,10000.01,0.00017427,2]
[382473052,1756639861884,10000.01,0.00017427,2]
[382473053,1756639861909,10000.01,0.00017427,2]
[382473054,1756639861933,10000.01,0.00017427,2]
[382473055,1756639861955,10000.01,0.00017427,2]
[382473056,1756639861976,10000.01,0.00017427,2]
[382473057,1756639862002,167084.42309601,0.00017427,2]
[382473058,1756639863177,300.0,0.00017426,2]
[382473059,1756639864840,1000.0,0.00016863,2]
[382473060,1756639897336,704.44199769,0.000175,2]
[382473065,1756640004699,162.943975,0.00017376,10]
[382473066,1756640042979,666.0,0.00016552,2]
[382473067,1756640110589,160.0,0.00022089,30]
[382473068,1756640146367,647.382653,0.00016999,2]
[382473069,1756640147056,336.40759885,0.00017001,2]
[382473070,1756640171445,693.0,0.00017417,2]
[382473071,1756640190303,617.168079,0.0001654,2]
[382473072,1756640190459,329.0,0.00017442,2]
[382473073,1756640194254,553.7180971,0.0001654,2]
[382473074,1756640199157,329.0,0.00017277,2]
[382473075,1756640216670,4960.94759936,0.00016533,2]
[382473076,1756640216693,6626.14817874,0.00016533,2]
[382473077,1756640279655,212.95,0.00015984,2]
[382473078,1756640279927,212.95,0.00015984,2]
[382473079,1756640280404,212.95,0.00015984,2]
[382473080,1756640424449,816.0,0.00017388,2]
[382473081,1756640488100,1919.01182126,0.00017425,2]
[382473082,1756640488124,10000.01,0.00017425,2]
[382473083,1756640488146,10000.01,0.00017425,2]
[382473084,1756640488172,10000.01,0.00017425,2]
[382473085,1756640488194,10000.01,0.00017425,2]
[382473086,1756640488216,10000.01,0.00017425,2]
[382473087,1756640488238,10000.01,0.00017425,2]
[382473088,1756640488260,10000.01,0.00017425,2]
[382473089,1756640488282,10000.01,0.00017425,2]
[382473090,1756640488303,10000.01,0.00017425,2]
[382473091,1756640488325,268566.67462054,0.00017425,2]
[382473092,1756640505076,5000.0,0.00017504,2]
[382473093,1756640516578,7580.4385019,0.00016525,2]
[382473094,1756640527916,5000.0,0.000175,2]
[382473095,1756640546251,162.943975,0.00017376,10]
[382473096,1756640551068,4837.066025,0.000175,2]
[382473097,1756640551091,162.933975,0.000175,2]
[382473098,1756640574297,5000.0,0.000175,2]
[382473099,1756640598356,5000.0,0.000175,2]
[382473100,1756640624402,0.01,0.000175,2]
[382473101,1756640624424,4999.99,0.000175,2]
[382473102,1756640647261,5000.0,0.000175,2]
[382473103,1756640670495,0.02,0.000175,2]
[382473104,1756640670517,4999.98,0.000175,2]
[382473105,1756640757265,584.44075876,0.00017263,2]
[382473106,1756640786425,4415.58924124,0.00016523,2]
[382473107,1756640786449,5584.41075876,0.00016523,2]
[382473108,1756640798617,455.43045761,0.000175,2]
[382473109,1756640806754,201.9445424,0.000175,2]
[382473110,1756640810202,1000.0,0.00016523,2]
[382473115,1756640841307,10000.0,0.00025,30]
[382473124,1756640859359,10000.0,0.00025,30]
[382473132,1756640878450,2758.22424123,0.00017423,2]
[382473133,1756640878472,22.54124453,0.00017423,2]
[382473192,1756641038436,-466.24,0.00017514,3]
[382473194,1756641038446,-233.12,0.00017514,3]
[382473196,1756641038455,-699.4,0.00017514,3]
[382473198,1756641038465,-209.40437684,0.00017514,2]
[382473200,1756641038474,-1360.00050872,0.00017514,2]
[382473202,1756641038483,-1200.0,0.00017519,2]
[382473204,1756641038493,-300.0,0.00017519,2]
[382473206,1756641038503,-2337.76303504,0.0001752,2]
[382473208,1756641038512,-1708.64,0.00017522,2]
[382473210,1756641038521,-480.0,0.00017522,2]
[382473212,1756641038530,-1055.11,0.00017522,2]
[382473214,1756641038540,-1347.16,0.00017522,2]
[382473216,1756641038549,-253.75978591,0.00017522,2]
[382473218,1756641038558,-3137.53,0.00017522,2]
[382473220,1756641038567,-1441.45,0.00017522,2]
[382473222,1756641038575,-3652.98,0.00017522,2]
[382473224,1756641038585,-1320.13,0.00017522,2]
[382473226,1756641038594,-480.0,0.00017522,2]
[382473252,1756641038817,-480.0,0.00017523,2]
[382473254,1756641038826,-480.0,0.00017523,2]
[382473256,1756641038836,-480.0,0.00017523,2]
[382473258,1756641038845,-480.0,0.00017523,2]
[382473260,1756641038854,-480.0,0.00017523,2]
[382473262,1756641038864,-480.0,0.00017523,2]
[382473264,1756641038873,-1519.76,0.00017523,2]
[382473266,1756641038882,-480.0,0.00017523,2]
[382473268,1756641038891,-705.52,0.00017523,2]
[382473270,1756641038900,-480.0,0.00017523,2]
[382473272,1756641038910,-550.24,0.00017523,2]
[382473274,1756641038920,-480.0,0.00017523,2]
[382473276,1756641038930,-480.0,0.00017523,2]
[382473278,1756641038939,-480.0,0.00017523,2]
[382473280,1756641038950,-698.71,0.00017523,2]
[382473282,1756641038959,-480.0,0.00017523,2]
[382473284,1756641038969,-4311.91,0.00017523,2]
[382473286,1756641038980,-547.76,0.00017523,2]
[382473288,1756641038989,-648.0,0.00017523,2]
[382473290,1756641039000,-480.0,0.00017523,2]
[382473292,1756641039009,-480.0,0.00017523,2]
[382473294,1756641039019,-480.0,0.00017523,2]
[382473296,1756641039028,-480.0,0.00017523,2]
[382473298,1756641039039,-509.35318846,0.00017523,2]
[382473300,1756641039048,-480.0,0.00017523,2]
[382473302,1756641039057,-480.0,0.00017523,2]
[382473304,1756641039067,-1144.41,0.00017523,2]
[382473306,1756641039077,-481.90214128,0.00017523,2]
[382473308,1756641039086,-480.0,0.00017523,2]
[382473310,1756641039095,-829.2,0.00017523,2]
[382473312,1756641039105,-480.0,0.00017523,2]
[382473314,1756641039114,-248.91033617,0.00017523,2]
[382473316,1756641039124,-480.0,0.00017523,2]
[382473318,1756641039134,-1165.56,0.00017523,2]
[382473320,1756641039144,-1881.76,0.00017523,2]
[382473322,1756641039153,-480.0,0.00017523,2]
[382473324,1756641039162,-480.0,0.00017523,2]
[382473326,1756641039172,-480.0,0.00017523,2]
[382473328,1756641039182,-1023.78,0.00017523,2]
[382473330,1756641039191,-480.0,0.00017523,2]
[382473332,1756641039201,-1504.63,0.00017523,2]
[382473334,1756641039209,-480.0,0.00017523,2]
[382473336,1756641039219,-671.18,0.00017523,2]
[382473338,1756641039228,-480.0,0.00017523,2]
[382473340,1756641039238,-482.32,0.00017523,2]
[382473342,1756641039247,-1531.8,0.00017523,2]
[382473344,1756641039256,-871.46,0.00017523,2]
[382473346,1756641039266,-610.71,0.00017523,2]
[382473348,1756641039276,-480.0,0.00017523,2]
[382473350,1756641039285,-480.0,0.00017523,2]
[382473352,1756641039295,-480.0,0.00017523,2]
[382473354,1756641039305,-957.25,0.00017523,2]
[382473356,1756641039314,-1488.17,0.00017523,2]
[382473358,1756641039323,-549.82,0.00017523,2]
[382473359,1756641039333,-6237.47,0.00017523,2]
[382473360,1756641039343,-480.0,0.00017523,2]
[382473361,1756641039352,-1032.08,0.00017523,2]
[382473362,1756641039361,-480.0,0.00017523,2]
[382473363,1756641039370,-1545.45,0.00017523,2]
[382473364,1756641039379,-1278.6,0.00017523,2]
[382473365,1756641039389,-793.35,0.00017523,2]
[382473366,1756641039399,-744.7,0.00017523,2]
[382473367,1756641039411,-1247.13,0.00017523,2]
[382473368,1756641039420,-480.0,0.00017523,2]
[382473369,1756641039430,-4987.13,0.00017523,2]
[382473370,1756641039440,-436.19576782,0.00017523,2]
[382473371,1756641039451,-480.0,0.00017523,2]
[382473372,1756641039459,-3024.61,0.00017523,2]
[382473373,1756641039468,-480.0,0.00017523,2]
[382473374,1756641039479,-480.0,0.00017523,2]
[382473375,1756641039488,-480.0,0.00017523,2]
[382473376,1756641039497,-480.0,0.00017523,2]
[382473377,1756641039506,-4192.05,0.00017523,2]
[382473378,1756641039515,-480.0,0.00017523,2]
[382473379,1756641039523,-480.0,0.00017523,2]
[382473380,1756641039532,-480.0,0.00017523,2]
[382473381,1756641039541,-480.0,0.00017523,2]
[382473382,1756641039551,-1337.74,0.00017523,2]
[382473383,1756641039559,-480.0,0.00017523,2]
[382473385,1756641039568,-480.0,0.00017523,2]
[382473387,1756641039578,-172.10845221,0.00017523,2]
[382473388,1756641039587,-500.0,0.00017523,2]
[382473391,1756641039596,-481.9284001,0.00017524,2]
[382473392,1756641039605,-480.0,0.00017524,2]
[382473394,1756641039615,-480.0,0.00017524,2]
[382473396,1756641039624,-457.56722464,0.00017524,2]
[382473398,1756641039634,-480.0,0.00017524,2]
[382473401,1756641039644,-500.0,0.00017524,2]
[382473402,1756641039654,-480.0,0.00017524,2]
[382473405,1756641039663,-480.0,0.00017524,2]
[382473407,1756641039674,-544.0,0.00017524,2]
[382473409,1756641039684,-1035.31,0.00017524,2]
[382473411,1756641039693,-480.0,0.00017524,2]
[382473413,1756641039702,-912.05,0.00017524,2]
[382473414,1756641039712,-2739.43,0.00017524,2]
[382473416,1756641039721,-480.0,0.00017524,2]
[382473418,1756641039732,-480.0,0.00017524,2]
[382473420,1756641039741,-1281.11,0.00017524,2]
[382473422,1756641039750,-1661.09,0.00017524,2]
[382473425,1756641039762,-1727.86,0.00017524,2]
[382473427,1756641039771,-1360.13,0.00017524,2]
[382473429,1756641039781,-480.0,0.00017524,2]
[382473431,1756641039791,-812.14,0.00017524,2]
[382473433,1756641039800,-227.27386968,0.00017524,2]
[382473435,1756641039810,-811.53,0.00017524,2]
[382473437,1756641039819,-526.81,0.00017524,2]
[382473439,1756641039828,-776.28,0.00017524,2]
[382473441,1756641039837,-480.0,0.00017524,2]
[382473442,1756641039846,-1513.89,0.00017524,2]
[382473444,1756641039855,-500.0,0.00017524,2]
[382473446,1756641039864,-1653.16,0.00017524,2]
[382473448,1756641039874,-984.98,0.00017524,2]
[382473450,1756641039884,-1227.32,0.00017524,2]
[382473452,1756641039893,-1259.02,0.00017524,2]
[382473454,1756641039903,-480.0,0.00017524,2]
[382473456,1756641039912,-1758.62,0.00017524,2]
[382473458,1756641039922,-595.14,0.00017524,2]
[382473460,1756641039931,-862.15,0.00017524,2]
[382473462,1756641039940,-480.0,0.00017524,2]
[382473464,1756641039951,-480.0,0.00017524,2]
[382473466,1756641039960,-506.09,0.00017524,2]
[382473468,1756641039969,-1271.41,0.00017524,2]
[382473470,1756641039978,-480.0,0.00017524,2]
[382473472,1756641039988,-1249.46,0.00017524,2]
[382473474,1756641039997,-811.01,0.00017524,2]
[382473476,1756641040007,-1869.57,0.00017524,2]
[382473478,1756641040016,-1572.18,0.00017524,2]
[382473480,1756641040026,-557.55,0.00017524,2]
[382473482,1756641040036,-1089.15,0.00017524,2]
[382473486,1756641040046,-906.27,0.00017524,2]
[382473489,1756641040055,-2153.77,0.00017524,2]
[382473492,1756641040064,-480.0,0.00017524,2]
[382473494,1756641040074,-1817.45,0.00017524,2]
[382473496,1756641040084,-1079.46,0.00017524,2]
[382473498,1756641040094,-2113.07,0.00017524,2]
[382473500,1756641040104,-12905.7,0.00017524,2]
[382473502,1756641040113,-480.0,0.00017524,2]
[382473504,1756641040123,-952.7,0.00017524,2]
[382473506,1756641040132,-2066.79,0.00017524,2]
[382473509,1756641040141,-480.0,0.00017524,2]
[382473512,1756641040152,-2705.65,0.00017524,2]
[382473515,1756641040161,-2770.45,0.00017524,2]
[382473518,1756641040171,-1519.41,0.00017524,2]
[382473521,1756641040180,-1741.72,0.00017524,2]
[382473524,1756641040190,-3702.65,0.00017524,2]
[382473527,1756641040200,-1536.27,0.00017524,2]
[382473530,1756641040209,-701.91,0.00017524,2]
[382473533,1756641040219,-737.04,0.00017524,2]
[382473536,1756641040229,-921.75,0.00017524,2]
[382473539,1756641040238,-499.02,0.00017524,2]